Cogmind - Beta 16 @@@ ROGUE MODE // 2026.01.03 @ 18:34:53 Player: Triffids Result: Self-destructed Performance ------------- Evolutions (1) 500 Regions Visited (2) 400 Robots Destroyed (25) 125 Value Destroyed (518) 518 Prototype IDs (2) 40 Alien Tech Used (0) 0 Bonus (0) 0 TOTAL SCORE: 1583 Bonus ------- None Cogmind --------- Core Integrity 254/400 Matter 300/300 Energy 265/265 System Corruption 0% Temperature Cool (0) Movement Walking (105) Location -9/Materials Parts ------- > --- POWER (1) -------- Improved Ion Engine > --- PROPULSION (2) --- Aluminum Leg Aluminum Leg > --- UTILITY (4) ------ Heat Sink Improved Terrain Scanner Terrain Scan Processor Light Armor Plating > --- WEAPON (2) ------- Medium Laser Beam Rifle > --- INVENTORY (5) ---- Light Ion Engine Aluminum Leg Medium Matter Pod (32) Mini Grenade Launcher Plasma Cutter Peak State ------------ > --- POWER ------------ Ion Engine > --- PROPULSION ------- Aluminum Leg Aluminum Leg > --- UTILITY ---------- Improved Terrain Scanner Terrain Scan Processor Light Armor Plating Hacking Suite > --- WEAPON ----------- Particle Gun Light Cannon > --- INVENTORY -------- Light Ion Engine Medium Laser Grenade Launcher Mining Laser [Rating: 15] Favorites ----------- Power Ion Engine Engine Ion Engine Propulsion Aluminum Leg Leg Aluminum Leg Utility Light Armor Plating Device Improved Terrain Scanner Processor Terrain Scan Processor Hackware Hacking Suite Protection Light Armor Plating Weapon Medium Laser Energy Gun Medium Laser Ballistic Gun Assault Rifle Ballistic Cannon Light Cannon Launcher Grenade Launcher Build | -11 -10 -9 ------- Run | Yrd Mat Mat Slots Evolved 2 | . . 2 Power . | . . . Propulsion . | . . . Utility 2 | . . 2 Weapon . | . . . Parts Attached 23 | 5 5 13 Power 3 | 1 . 2 Engine 3 | 1 . 2 Core . | . . . Reactor . | . . . Propulsion 5 | 2 . 3 Treads . | . . . Leg 5 | 2 . 3 Wheel . | . . . Hover . | . . . Flight . | . . . Utility 8 | . 3 5 Device 2 | . . 2 Storage . | . . . Processor 2 | . 1 1 Hackware 1 | . . 1 Protection 3 | . 2 1 Artifact . | . . . Weapon 7 | 2 2 3 Energy Gun 4 | 1 1 2 Energy Cannon . | . . . Ballistic Gun 1 | 1 . . Ballistic Cannon 1 | . 1 . Launcher 1 | . . 1 Special Weapon . | . . . Impact Weapon . | . . . Slashing Weapon . | . . . Piercing Weapon . | . . . Special Melee Weapon . | . . . Unidentified Prototypes . | . . . Parts Lost 5 | . . 5 Power 1 | . . 1 Propulsion 1 | . . 1 Utility 1 | . . 1 Weapon 2 | . . 2 Highest Loss Streak 3 | . . 3 To Critical Strikes . | . . . Average Backups 4 | 3 5 4 Power 1 | . 1 1 Propulsion . | . . . Utility . | 1 1 . Weapon 2 | 1 2 2 Tool/Special . | . . . Unused Backups 9 | 1 2 6 Power 1 | . . 1 Propulsion . | . . . Utility 3 | 1 1 1 Weapon 4 | . 1 3 Tool/Special 1 | . . 1 Average Slot Usage (%) 91 | . 89 93 Engine 11 | . 14 10 Leg 24 | . 28 22 Device 6 | . . 10 Processor 10 | . 8 11 Hackware 5 | . . 7 Protection 8 | . 9 8 Energy Gun 14 | . 14 14 Ballistic Gun 4 | . 13 . Ballistic Cannon 4 | . . 7 Peak Build Rating 15 | 5 8 15 Average Rating 10 | 4 6 13 On Entrance 4 | . 5 8 Avg Prop Armor Cover (%) 30 | 30 . . Naked Turns . | . . . Heaviest Build 17 | 9 14 17 Greatest Support 20 | 20 20 20 Greatest Overweight (x) . | . . . Average Overweight (x) . | . . . Largest Inventory Capacity 5 | 5 5 5 Average Capacity 5 | 5 5 5 Most Carried 5 | 5 5 5 Average Carried 4 | 4 4 4 Final Capacity 5 | 5 5 5 Final Carried 5 | 5 5 5 Class Distribution -------------------- 60% | Mutant 39% | Scavenger-Mutant Dominant Class ---------------- Mutant | -10/Materials Scavenger-Mutant | -9/Materials Resources | -11 -10 -9 ----------- Run | Yrd Mat Mat Matter Collected 701 | 289 72 340 Remotely . | . . . Salvage Created 719 | 199 190 330 Parts 48 | 12 10 26 Haulers Intercepted 1 | . 1 . Recyclers Shooed 1 | 1 . . Parts Field Recycled . | . . . Retrieved Matter . | . . . Parts Self-Destructed . | . . . Prevented . | . . . Parts Restored . | . . . Kills | -11 -10 -9 ------- Run | Yrd Mat Mat Combat Hostiles Destroyed 16 | . 5 11 Guns 11 | . 5 6 Cannons 3 | . . 3 AOE 2 | . . 2 Classes Destroyed 8 | 2 3 3 Tunneler 5 | 5 . . Hauler 1 | . 1 . Recycler 1 | 1 . . Operator 1 | . . 1 Watcher 1 | . . 1 Swarmer 7 | . 3 4 Grunt 5 | . 2 3 Sentry 4 | . . 4 Best Kill Streak 5 | 5 2 4 Combat Bots Only 3 | . 2 3 Max Kills in Single Turn 2 | 1 1 2 Gunslinging . | . . . Exploded 2 | . . 2 Melee . | . . . Uniques/NPCs Destroyed . | . . . Combat | -11 -10 -9 -------- Run | Yrd Mat Mat Hostile Shots Fired 97 | . 14 83 Missed 27 | . 5 22 Hits 70 | . 9 61 Projectile 70 | . 9 61 Critical Strikes 2 | . . 2 Damage Taken 881 | . 98 783 Core 158 | . 12 146 Absorbed by Shields . | . . . Core Remaining (%) 97 | 100 95 . Volleys Fired 81 | 13 15 53 Largest 2 | 2 2 2 Hottest 115 | 70 70 115 Shots Fired 149 | 26 30 93 Gun 112 | 26 30 56 Cannon 36 | . . 36 Launcher 1 | . . 1 Special . | . . . Kinetic 64 | 13 15 36 Thermal 84 | 13 15 56 Explosive 1 | . . 1 Electromagnetic . | . . . Robot Hit Streak 12 | 7 10 12 Robot Miss Streak 6 | 2 2 6 Penetration Max . | . . . Secondary Targets 1 | . . 1 Max Gunslinging Chain 1 | . . 1 Shots Hit Robots 93 | 18 17 58 Core Hits 34 | 7 10 17 Critical Kills . | . . . Critical Parts Destroyed . | . . . Critical Strikes 4 | 1 1 2 Burn 4 | 1 1 2 Melee Attacks . | . . . Impact . | . . . Slashing . | . . . Piercing . | . . . Sneak Attacks . | . . . Combat Hostiles . | . . . Follow-up Attacks . | . . . Damage Inflicted 1418 | 227 207 984 Guns 924 | 227 207 490 Cannons 421 | . . 421 Explosions 70 | . . 70 Melee . | . . . Ramming 3 | . . 3 Kinetic 603 | 87 95 421 Thermal 742 | 140 112 490 Explosive 70 | . . 70 Electromagnetic . | . . . Impact . | . . . Slashing . | . . . Piercing . | . . . Highest Corruption . | . . . Average Corruption . | . . . Corruption Purged . | . . . Corruption Blocked . | . . . Overload Shots . | . . . Overflow Damage 34 | . . 34 Projectiles 6 | . . 6 Explosions 28 | . . 28 Melee . | . . . Knockbacks 1 | . . 1 Impact . | . . . Kinetic 1 | . . 1 Secondary . | . . . Self-Inflicted Damage 29 | . . 29 Shots 1 | . . 1 Rammed . | . . . Targets Rammed 1 | . . 1 Kicked 1 | . . 1 Crushed . | . . . Highest Temperature 364 | 72 72 364 Average Temperature 105 | 28 27 145 Received Heat Transfer 321 | . 39 282 Effects 3 | . . 3 Energy Bleed 1 | . . 1 Damage (minor) 2 | . . 2 Siege Activations . | . . . Martial Activations . | . . . Shielding Activations . | . . . Robots Disrupted . | . . . Combat Hostiles . | . . . Robots Corrupted . | . . . Combat Hostiles . | . . . Parts Fried . | . . . Impact Corruptions . | . . . Robots Melted . | . . . Combat Hostiles . | . . . Parts Melted 1 | . . 1 Heat Transferred 2283 | 481 407 1395 Parts Sabotaged . | . . . Parts Stolen . | . . . Parts Stripped . | . . . Power Chain Reactions . | . . . Alert | -11 -10 -9 ------- Run | Yrd Mat Mat Maximum Alert Level 1 | . . 1 Low Security (%) 98 | 100 100 97 Level 1 1 | . . 2 Level 2 . | . . . Level 3 . | . . . Level 4 . | . . . Level 5 . | . . . High Security . | . . . Max Security . | . . . Peak Influence 207 | 10 96 207 Initial 11 | . . 11 Average 72 | 4 42 102 Influence Increases 663 | 30 160 473 Destroy 0b10 Robot/C 320 | . 100 220 Destroy 0b10 Robot/NC 45 | 30 5 10 Destroy Leader 94 | . 22 72 Successful Hack 28 | . 17 11 Select Force Hacks 30 | . . 30 Disable Machine 15 | . . 15 Destroy Structure 11 | . 1 10 Lose Combat Pursuer 120 | . 15 105 Influence Decreases 474 | 30 133 311 Entered New Map 16 | . . 16 Time Decay 408 | 30 133 245 Lost Part 50 | . . 50 Squads Dispatched 2 | . . 2 Investigation 1 | . . 1 Extermination . | . . . Reinforcement 1 | . . 1 Assault . | . . . Garrison . | . . . Intercept . | . . . Searches Triggered . | . . . Construction Impeded . | . . . Haulers Reinforced . | . . . Active Scanning Responses . | . . . Cargo Convoy Interrupts . | . . . Stealth | -11 -10 -9 --------- Run | Yrd Mat Mat Distress Signals 3 | . . 3 Communications Jammed . | . . . Distress Signals . | . . . Times Spotted 26 | . 8 18 Peak Tracking Total 5 | . 3 5 Tactical Retreats 4 | . 1 3 Traps | -11 -10 -9 ------- Run | Yrd Mat Mat Traps Triggered . | . . . Indirectly . | . . . Trap Hack Attempts . | . . . Triggered . | . . . Disarmed . | . . . Reprogrammed . | . . . Reused . | . . . Traps Extracted . | . . . Installed . | . . . Triggered . | . . . Machines | -11 -10 -9 ---------- Run | Yrd Mat Mat Machines Disabled 1 | . . 1 Max in Single Turn 1 | . . 1 Machines Repaired . | . . . Machines Dismantled . | . . . Machines Sabotaged . | . . . Overloaded Fab Kills . | . . . Hacking | -11 -10 -9 --------- Run | Yrd Mat Mat Machines Accessed 8 | . 4 4 Terminals 6 | . 3 3 Fabricators . | . . . Repair Stations . | . . . Recycling Units 1 | . 1 . Scanalyzers 1 | . . 1 Garrison Access . | . . . Total Hacks 26 | . 18 8 Successful 16 | . 11 5 Failed 10 | . 7 3 Catastrophic 1 | . . 1 Database Lockouts . | . . . Manual 19 | . 13 6 Terminals 22 | . 16 6 Fabricators . | . . . Repair Stations . | . . . Recycling Units 2 | . 2 . Scanalyzers 2 | . . 2 Garrison Access . | . . . Terminal Hacks 7 | . 5 2 Prototype ID Bank 1 | . 1 . Emergency Access Points 1 | . 1 . Terminal Index 2 | . 1 1 Locate Traps 2 | . 1 1 Hauler Manifests 1 | . 1 . Fabricator Hacks . | . . . Repair Station Hacks . | . . . Recycling Unit Hacks 1 | . 1 . Report Inventory 1 | . 1 . Scanalyzer 1 | . . 1 Retrieve Study 1 | . . 1 Garrison Access Hacks . | . . . Unauthorized Hacks 7 | . 5 2 Terminals 5 | . 4 1 Botnet 4 | . 3 1 Operators 1 | . 1 . Fabricators . | . . . Repair Stations . | . . . Recycling Units 1 | . 1 . Monitor 1 | . 1 . Scanalyzers 1 | . . 1 Extract 1 | . . 1 Garrison Access . | . . . Data Cores Recovered 1 | . . 1 Used . | . . . Hacking Detections 6 | . 3 3 Full Trace Events . | . . . Feedback Events . | . . . Feedback Blocked . | . . . Robot Schematics Acquired . | . . . Robots Built . | . . . Authchips . | . . . Time . | . . . Total Robot Build Rating . | . . . Part Schematics Acquired 1 | . . 1 Parts Built . | . . . Authchips . | . . . Time . | . . . Total Part Build Rating . | . . . Part Studies Acquired 1 | . . 1 Parts Repaired . | . . . Time . | . . . Parts Recycled . | . . . Recycled Matter . | . . . Retrieved Matter . | . . . Retrieved Components . | . . . Parts Scanalyzed . | . . . Part Schematics Acquired . | . . . Parts Damaged . | . . . Bothacking | -11 -10 -9 ------------ Run | Yrd Mat Mat Used RIF Installer . | . . . Robots Hacked . | . . . Non-combat . | . . . Combat . | . . . Robot Hacks Applied . | . . . Relay Couplers Released . | . . . Fabnet Peak Effective % . | . . . Robots Rewired . | . . . Allies Hacked . | . . . Hacks Repelled . | . . . Allies | -11 -10 -9 -------- Run | Yrd Mat Mat Total Allies . | . . . Largest Group . | . . . Highest-Rated Group . | . . . Highest-Rated Ally . | . . . Total Orders . | . . . Ally Attacks . | . . . Total Damage . | . . . Kills . | . . . Allies Corrupted . | . . . Allies Melted . | . . . Intel | -11 -10 -9 ------- Run | Yrd Mat Mat Active Infowar (turns) 453 | . . 453 Terrain 453 | . . 453 Robot Analysis Total . | . . . Derelict Logs Recovered . | . . . Drone Launches . | . . . Drone Recoveries . | . . . Exploration | -11 -10 -9 ------------- Run | Yrd Mat Mat Turns Passed 1071 | 124 334 613 Spaces Moved 647 | 65 218 364 Core 14 | 14 . . Treads . | . . . Legs 633 | 51 218 364 Wheels . | . . . Hover . | . . . Flight . | . . . Fastest Speed 50 | 50 120 105 Average Speed 115 | 104 120 114 Slowest Speed 120 | 120 120 120 Overloaded Moves . | . . . Propulsion Burnouts . | . . . Robots Hopped . | . . . Potential Cave-ins . | . . . Cave-ins Triggered . | . . . Exploration Rate (%) 25 | 4 43 28 Regions Visited 2 Branch Regions . Pre-discovered Areas . | . . . Known Exits Taken . | . . . Unknown Exits Taken 2 | 1 1 . Scrap Searched . | . . . Spaces Dug . | . . . Terrain Destroyed 8 | . . 8 Melee . | . . . Projectile . | . . . AOE 8 | . . 8 Terrain Rammed . | . . . Walls Destroyed . | . . . Machines Disabled . | . . . Actions | -11 -10 -9 --------- Run | Yrd Mat Mat Total 823 | 95 260 468 Wait 41 | 3 18 20 Move 645 | 64 217 364 Hop . | . . . Pick Up 17 | 9 2 6 Fast Attach 9 | 2 2 5 Attach 7 | 3 . 4 Detach 2 | . . 2 Swap 10 | . 3 7 Drop 10 | 1 3 6 Fire 81 | 13 15 53 Melee . | . . . Ram . | . . . Kick 1 | . . 1 Crush . | . . . Escape Stasis . | . . . Rewire . | . . . Trap . | . . . Miscellaneous . | . . . Route ------- -11/Scrapyard -10/Materials (discovered 2 exits: *Mat / [*Min]) -9/Materials (discovered 1 exit: [*Sto]) History --------- Turn | Location | Event 14 | -11/Scrapyard | Discovered new exit (range 15) 125 | -11/Scrapyard | Entered Materials 288 | -10/Materials | Discovered new exit (range 7) 318 | -10/Materials | Build established: Mutant 418 | -10/Materials | Discovered new exit (range 15) 459 | -10/Materials | Entered another Materials area 459 | -9/Materials | Evolved 2 slots: Utility x2 946 | -9/Materials | Lost 3 parts (1n2w) 971 | -9/Materials | Build established: Scavenger-Mutant 1069 | -9/Materials | Discovered new exit (range 9) 1072 | -9/Materials | Self-destructed Last Messages --------------- 6x Shock Trap Map updated. 01015_ Dropped Rocket Launcher. 01016_ Acquired Mni. Grenade Launcher. 01018_ R-06 Scavenger collects Rocket Launcher. 01018_ Dropped Lgt. Ion Engine. 01019_ Acquired Med. Matter Pod. 01022_ R-06 Scavenger collects Lgt. Ion Engine. 01036_ Dropped Med. Laser. 01038_ Acquired Med. Laser. 01045_ W-16 Scout sends out distress signal. 01045_ K-01 Serf cleans the Fusion Modulator. 01046_ R-06 Scavenger collects Sml. Laser. 01060_ Y-45 Defender destroyed. 01060_ R-06 Scavenger collects Beam Rifle. 01061_ K-01 Serf collects debris. 01063_ R-06 Scavenger collects Heat Sink. 01064_ Acquired 52 matter. 01069_ EXIT=FOUND 01069_ R-06 Scavenger collects Heat Sink. Map ----- +----------------------------------------------------+ | ???? #??????# #?#???"????? ? ?"???? ?????????? | | ? ? + ? #??# ##??? ?? ?? ??? ??"??? ????????? | | ?????# ##?# ###?? ?? ?#? ? ?"?#? ?????????? | | ??? # ??### ########+##???? ???? ????????? | | """ # ?### # ^==^ T # ?"?"" ???? ???????? | | ? # #######+## == # ""??? ????? ??????? | | #??#?# ^ # ""??"?#???????????? | | ##???# #? ??? ??????##??????? | | ####?# ##?###?#??????????? ?? | | ######+#### """ #??#??##???##????? ??? | | # ##### """ #??####?######???????? | | """"" ## %#?#?# """ ! #?#??#####???????????# | | ""T"" ## #####^ ############?#?##????? | | % ## ##### ## #???#????## | | #######+## #### ^ ## ##????????? | | ##### #?## ^ ## #?????????? | | # #### # #??? ##???? | | # #?## !! + """ """ ## ????#??? | | # ## ##?# # """ """ ## ???????? | | # ### ####### r# """ """ ##?? #????? | | + ### ###?#?##########r# #????#????? | | ##### ### #?####?#####// k############????????? | | # ### ##?###??#?##// a#??##??#?##???##????? | | """ # ### #########?##!! k### #?????????????? | | """ # ### #######?##?#!! w < ? ? ????? | | """ # ### ####?#??##?#!@ ##### ###??#? ??????? | | + ### ##?##?######!! #???#??##?##????? ????? | | "" # ### ########?########?? ?? #?#?????????? | | """# ### #########?###???#?#???" ?? ???????? | | S"# ### ####?###?##?##???#???"????#??????????? | | # ### ####?#?##???#?#?###?"??? ????????????? | | ##### ###%###??##?#??##??#??#?? ??????????????? | | # ### ####?##??#????????#????? ????????????? | | """ # ### #??##?###?#????##????????????????????? | | """ # ### ##??###?#??##???????#????????????????? | | """ # # #?####?###???#???????????????????????? | | + # #########?????#??????????????????????? | | """ # # ###??##??#?#???????#?????????????????? | | """ ## ## ###?##??###??????????????????????????? | | """ ## ## #######?####?#???????????????????????? | | ##[## ###?#####????????????????????????????? | | ######=## #########????#???????????????????????? | | ######/## ####?######?#????????????????????????? | | * =# ####?#######?##?#????????????????????? | | # ####?##?###?#????????????????????????? | | " =# #####?####??#???#????????????????????? | | " " # ########?????????????????????????????? | | """*+ #### ######?#????? ??????????????????? | | # ## ##?????????????????????????? | | ######### ## #??????????????????????????? | +----------------------------------------------------+ Best States ------------- Heat Dissipation 38 Energy Generation 12 Energy Capacity 265 Matter Stores 300 Matter Capacity 300 Sight Range 16 Terrain Scan Range 16 Terrain Scan Density 85 Armor Coverage 150 Evasion (%) 55 Targeting Accuracy 5 Offensive Hacking 10 Item Schematics ----------------- Imp. Aluminum Leg | -9/Materials | Extracted Robot Schematics ------------------ None Fabricated ------------ Nothing Repaired ---------- Nothing Studied --------- Aluminum Leg | -9/Materials | Hacked Alien Tech Used ----------------- None Achievements -------------- None Challenges ------------ None Game ------ Seed FieldthrustPrecisionStripper Manual? 0 Play Time 00:17:47 Cumulative 255.3 hours Start 2026.01.02 @ 20:20:26 End 2026.01.03 @ 18:34:53 Sessions 3 Manual Loads 0 Difficulty Rogue Special Mode None Game No. 487 Rogue 487 Adventurer 0 Explorer 0 Win Type - Total 1 Types 1/0/0/0/0/0/0/0/0/0 Lore% 30 Gallery% 47 Achievement% 27 Wizard Run 0 Options --------- Layout 1 ASCII 0 Keyboard 1 Movement Vi Keybinds 0 Fullscreen 0 Font 20/Smallcaps Map View 59x39 Zoom Use 0% Tactical HUD 1 Map Filters NONE Filters NONE Steam 1 RUN: c7d2c75a-c3ee-46af-8af1-26faa723ec02